bitfinex/quotes_BTCUSD_20250330
["timestamp","ask_amount","ask_price","bid_price","bid_amount"]
[1743295644023,4e-07,82929.0,82928.0,0.96357744]
[1743295647526,4e-07,82929.0,82928.0,0.97013325]
[1743295648548,4e-07,82929.0,82928.0,1.54445325]
[1743295652406,4e-07,82929.0,82928.0,1.39441325]
[1743295652584,4e-07,82929.0,82928.0,1.54237325]
[1743295653391,4e-07,82929.0,82928.0,1.54720725]
[1743295659025,4e-07,82929.0,82928.0,1.57220725]
[1743295660189,4e-07,82929.0,82928.0,1.57156725]
[1743295660390,0.002,82949.0,82948.0,0.253169]
[1743295660588,0.002,82949.0,82948.0,0.47313436]
[1743295661610,0.0024721,82949.0,82948.0,0.47313436]
[1743295661833,0.0024721,82949.0,82948.0,0.78313436]
[1743295662067,0.0024721,82949.0,82948.0,0.87169017]
[1743295662783,0.0024721,82949.0,82948.0,0.86669017]
[1743295662984,0.0024721,82949.0,82948.0,0.89649079]
[1743295663408,0.0024721,82949.0,82948.0,0.91018919]
[1743295664012,0.0024721,82949.0,82948.0,0.91618919]
[1743295664853,0.0026404,82949.0,82948.0,0.91618919]
[1743295667863,0.0026404,82949.0,82948.0,1.49034919]
[1743295669042,4e-07,82949.0,82948.0,1.49034919]
[1743295669216,4e-07,82949.0,82948.0,1.39246919]
[1743295669413,4e-07,82949.0,82948.0,1.53886919]
[1743295670263,0.0001685,82962.0,82961.0,0.25313]
[1743295670448,5e-07,82962.0,82961.0,0.48051195]
[1743295671521,5e-07,82962.0,82961.0,0.49758885]
[1743295671756,5e-07,82962.0,82961.0,0.79758885]
[1743295672191,5e-07,82962.0,82961.0,0.80358885]
[1743295672399,5e-07,82962.0,82961.0,0.80958885]
[1743295674595,5e-07,82962.0,82961.0,0.74838775]
[1743295674952,5e-07,82962.0,82961.0,0.29674775]
[1743295675074,5e-07,82962.0,82961.0,0.4290469]
[1743295675692,5e-07,82962.0,82961.0,0.43306666]
[1743295676517,5e-07,82962.0,82961.0,0.43806666]
[1743295676693,5e-07,82962.0,82961.0,0.53594363]
[1743295677934,5e-07,82962.0,82961.0,0.53094363]
[1743295678313,5e-07,82962.0,82961.0,0.38410363]
[1743295678532,5e-07,82962.0,82961.0,0.53058363]
[1743295679134,5e-07,82962.0,82961.0,0.53050363]
[1743295679768,5e-07,82962.0,82961.0,0.91610363]
[1743295683350,5e-07,82962.0,82961.0,0.66682666]
[1743295683482,5e-07,82962.0,82961.0,0.73354666]
[1743295684689,5e-07,82962.0,82961.0,0.28622666]
[1743295684896,5e-07,82962.0,82961.0,0.43378666]
[1743295686324,5e-07,82962.0,82961.0,0.42778666]
[1743295686527,5e-07,82962.0,82961.0,0.42123085]
[1743295686991,5e-07,82962.0,82961.0,0.42723085]
[1743295687465,5e-07,82962.0,82961.0,0.52362771]
[1743295687671,5e-07,82962.0,82961.0,0.42723085]
[1743295687875,5e-07,82962.0,82961.0,0.27967085]
[1743295688051,5e-07,82962.0,82961.0,0.42699085]
[1743295690479,5e-07,82962.0,82961.0,0.42671085]
[1743295690883,5e-07,82962.0,82961.0,0.42704745]
[1743295692719,5e-07,82962.0,82961.0,0.28000745]
[1743295692901,5e-07,82962.0,82961.0,0.42676745]
[1743295694194,5e-07,82962.0,82961.0,0.5200723]
[1743295694536,0.0120535,82962.0,82961.0,0.0123366]
[1743295694771,5e-07,82962.0,82961.0,0.1591766]
[1743295695077,5e-07,82962.0,82961.0,0.17371745]
[1743295695307,0.0928535,82962.0,82961.0,0.1591766]
[1743295695541,0.0928535,82962.0,82961.0,0.1531766]
[1743295695768,0.0928535,82962.0,82961.0,0.1591766]
[1743295696235,0.0808005,82962.0,82961.0,0.1471766]
[1743295696464,0.0808005,82962.0,82961.0,0.1652296]
[1743295696681,0.0808005,82962.0,82961.0,0.0243896]
[1743295696912,0.0808005,82962.0,82961.0,0.1710696]
[1743295697614,0.0808005,82962.0,82961.0,0.1590166]
[1743295699165,0.3218745,82962.0,82961.0,0.1590166]
[1743295699339,0.3339275,82962.0,82961.0,0.1590166]
[1743295699873,0.0808005,82962.0,82961.0,0.1590166]
[1743295700098,0.3218745,82962.0,82961.0,0.1590166]
[1743295700296,0.0808005,82962.0,82961.0,0.1590166]
[1743295700843,0.0808005,82962.0,82961.0,0.4121466]
[1743295701124,0.0808005,82962.0,82961.0,0.1710696]
[1743295701347,0.0808005,82962.0,82961.0,0.1590166]
[1743295701546,0.0808005,82962.0,82961.0,0.0123366]
[1743295701676,0.0808005,82962.0,82961.0,0.1588566]
[1743295704705,5e-07,82962.0,82961.0,0.49424641]
[1743295705310,5e-07,82962.0,82961.0,0.42652745]
[1743295714706,5e-07,82962.0,82961.0,0.50632745]
[1743295715592,5e-07,82962.0,82961.0,0.51290654]
[1743295717277,5e-07,82962.0,82961.0,0.55860654]
[1743295717703,5e-07,82962.0,82961.0,0.56360654]
[1743295717915,5e-07,82962.0,82961.0,0.6741615]
[1743295718357,5e-07,82962.0,82961.0,0.6621615]
[1743295718554,5e-07,82962.0,82961.0,0.6741615]
[1743295719000,5e-07,82962.0,82961.0,0.68469419]
[1743295719217,5e-07,82962.0,82961.0,0.98469419]
[1743295720364,5e-07,82962.0,82961.0,0.87413923]
[1743295721876,5e-07,82962.0,82961.0,0.86360654]
[1743295725847,5e-07,82962.0,82961.0,0.85860654]
[1743295727208,5e-07,82962.0,82961.0,0.85780654]
[1743295730357,5e-07,82962.0,82961.0,0.85122745]
[1743295731485,5e-07,82962.0,82961.0,0.58000745]
[1743295731692,5e-07,82962.0,82961.0,0.42532745]
[1743295732829,5e-07,82962.0,82961.0,0.54561228]
[1743295733028,5e-07,82962.0,82961.0,0.42532745]
[1743295734211,5e-07,82962.0,82961.0,0.43190654]
[1743295734422,5e-07,82962.0,82961.0,0.51050654]
[1743295735172,5e-07,82962.0,82961.0,0.55850654]
[1743295741367,5e-07,82962.0,82961.0,0.47990654]
[1743295741944,5e-07,82962.0,82961.0,0.43190654]
[1743295743288,5e-07,82962.0,82961.0,0.28658654]
[1743295743490,5e-07,82962.0,82961.0,0.43110654]
[1743295743917,5e-07,82962.0,82961.0,0.43102654]
[1743295744874,5e-07,82962.0,82961.0,0.42502654]
[1743295745059,5e-07,82962.0,82961.0,0.28658654]
[1743295745268,5e-07,82962.0,82961.0,0.43090654]
[1743295745676,5e-07,82962.0,82961.0,0.42490654]
[1743295745886,5e-07,82962.0,82961.0,0.55119137]
[1743295746658,5e-07,82962.0,82961.0,0.67889137]
[1743295748032,5e-07,82962.0,82961.0,0.67289137]
[1743295748252,5e-07,82962.0,82961.0,0.70280899]
[1743295748656,5e-07,82962.0,82961.0,0.69680899]
[1743295749338,5e-07,82962.0,82961.0,0.70280899]
[1743295751438,5e-07,82962.0,82961.0,0.58252416]
[1743295754278,5e-07,82962.0,82961.0,0.593072]
[1743295761913,5e-07,82962.0,82961.0,0.514072]
[1743295763839,5e-07,82962.0,82961.0,0.369752]
[1743295764146,5e-07,82962.0,82961.0,0.512832]
[1743295765951,5e-07,82962.0,82961.0,0.63311683]
[1743295766152,5e-07,82962.0,82961.0,0.512832]
[1743295766350,5e-07,82962.0,82961.0,0.594232]
[1743295774779,5e-07,82962.0,82961.0,0.58292416]
[1743295778265,5e-07,82962.0,82961.0,0.59348009]
[1743295780405,5e-07,82962.0,82961.0,0.89848009]
[1743295780616,5e-07,82970.0,82969.0,0.017052]
[1743295780764,9e-07,82974.0,82973.0,0.03159285]
[1743295780967,9e-07,82974.0,82973.0,0.27263485]
[1743295781370,0.0001684,82992.0,82970.0,0.384202]
[1743295781371,0.252982,83010.0,83004.0,0.01454085]
[1743295781570,0.3,83007.0,83004.0,0.01454085]
[1743295781955,0.3,83007.0,83004.0,4.729e-05]
[1743295782153,0.0001684,83012.0,83006.0,0.252992]
[1743295782376,0.0001684,83012.0,83011.0,0.02658685]
[1743295782582,0.0001684,83012.0,83011.0,0.01454085]
[1743295782915,0.012046,83011.0,83004.0,4.729e-05]
[1743295783123,0.252977,83011.0,83004.0,0.01658814]
[1743295783327,0.240938,83009.0,83004.0,0.01658814]
[1743295783498,0.252977,83011.0,83004.0,0.00104729]
[1743295783698,0.25299,83007.0,83004.0,0.00104729]
[1743295783924,0.240943,83007.0,83004.0,0.00104729]
[1743295784240,0.012047,83008.0,83004.0,0.00304729]
[1743295784482,0.012047,83005.0,83004.0,0.00304729]
[1743295784961,0.012047,83005.0,83004.0,4.729e-05]
[1743295785166,0.252996,83006.0,83004.0,0.00404729]
[1743295785368,0.0432,83007.0,83004.0,0.00404729]
[1743295785599,0.252993,83006.0,83004.0,0.00404729]
[1743295785800,0.2569157,83006.0,83004.0,0.00404729]
[1743295785984,0.2569157,83006.0,83004.0,0.00804729]
[1743295786222,0.012047,83005.0,83004.0,0.00404729]
[1743295786421,0.012047,83005.0,83004.0,4.729e-05]
[1743295786577,0.012047,83005.0,83004.0,0.00404729]
[1743295786782,0.012047,83005.0,83004.0,0.00904729]
[1743295787798,0.012047,83005.0,83004.0,0.00504729]
[1743295788200,0.012047,83005.0,83004.0,0.00904729]
[1743295788416,0.012047,83005.0,83004.0,0.00504729]
[1743295788814,0.012047,83005.0,83004.0,0.01004729]
[1743295789338,0.01240209,83005.0,83004.0,0.01004729]
[1743295793935,0.01240209,83005.0,83004.0,0.01038429]
[1743295795318,0.0971774,83005.0,83004.0,0.01038429]
[1743295795491,0.01240209,83005.0,83004.0,0.00538429]
[1743295795852,0.01240209,83005.0,83004.0,0.00438429]
[1743295795991,0.01240209,83005.0,83004.0,0.00838429]
[1743295796194,0.01240209,83005.0,83004.0,0.00438429]
[1743295796395,0.01240209,83005.0,83004.0,0.00838429]
[1743295796733,0.01240209,83005.0,83004.0,0.00438429]
[1743295797038,0.01240209,83005.0,83004.0,0.00738429]
[1743295797442,0.00035509,83005.0,83004.0,0.00738429]
[1743295797657,0.00035509,83005.0,83004.0,0.24833629]
[1743295797844,0.00035509,83005.0,83004.0,0.26038329]
[1743295798605,0.00035509,83005.0,83004.0,0.01943129]
[1743295798794,0.00035509,83005.0,83004.0,0.00738429]
[1743295799788,0.00035509,83005.0,83004.0,0.26038329]
[1743295799996,0.00392269,83005.0,83004.0,0.26038329]
[1743295800418,0.00392269,83005.0,83004.0,0.36172297]
[1743295800619,0.00392269,83005.0,83004.0,0.40932297]
[1743295800768,0.0001685,83010.0,83009.0,0.252983]
[1743295800930,0.00050899,83010.0,83009.0,0.26752385]
[1743295801400,0.0001685,83010.0,83009.0,0.26752385]
[1743295802061,0.0001685,83010.0,83009.0,0.01654085]
[1743295802321,0.0001685,83010.0,83009.0,0.02858685]
[1743295802889,0.00050899,83010.0,83009.0,0.02658685]
[1743295803201,0.00050899,83010.0,83009.0,0.03058685]
[1743295803585,0.00050899,83010.0,83009.0,0.03258685]
[1743295803989,0.0001685,83010.0,83009.0,0.03058685]
[1743295804182,0.00050899,83010.0,83009.0,0.03058685]
[1743295804405,0.00050899,83010.0,83009.0,0.02154085]
[1743295804606,0.00050899,83010.0,83009.0,0.007]
[1743295804807,0.01255499,83010.0,83009.0,0.007]
[1743295805230,0.06562713,83010.0,83009.0,0.007]
[1743295805431,0.01255499,83010.0,83009.0,0.007]
[1743295806040,0.00050899,83010.0,83009.0,0.007]
[1743295806627,0.01255499,83010.0,83009.0,0.007]
[1743295806828,0.31255499,83010.0,83009.0,0.007]
[1743295807029,0.35575499,83010.0,83009.0,0.007]
[1743295807230,0.44488713,83010.0,83009.0,0.007]
[1743295808415,0.35575499,83010.0,83009.0,0.003]
[1743295808620,0.35575499,83010.0,83009.0,0.004]
[1743295808821,0.36480117,83010.0,83009.0,0.004]
[1743295809291,0.36480117,83010.0,83009.0,0.001]
[1743295809648,0.35575499,83010.0,83009.0,0.004]
[1743295810538,0.35575499,83010.0,83009.0,0.001]
[1743295810751,0.4687082,83010.0,83009.0,0.002]
[1743295810983,0.37957606,83010.0,83009.0,0.002]
[1743295811692,0.35575499,83010.0,83009.0,0.002]
[1743295811913,0.31255499,83010.0,83009.0,0.002]
[1743295812117,0.00050899,83010.0,83009.0,0.002]
[1743295812459,0.00050899,83010.0,83009.0,0.014046]
[1743295812618,0.00050899,83010.0,83009.0,0.097046]
[1743295813600,0.0001685,83010.0,83009.0,0.11058685]
[1743295813747,0.0001685,83010.0,83009.0,0.15658685]
[1743295813945,0.0001685,83010.0,83009.0,0.16058685]
[1743295814354,0.0001685,83010.0,83009.0,0.15558685]
[1743295814800,0.0001685,83010.0,83009.0,0.15958685]
[1743295814949,0.0001685,83010.0,83009.0,0.15558685]
[1743295815349,0.0001685,83010.0,83009.0,0.16058685]
[1743295815778,0.0001685,83010.0,83009.0,0.16558685]
[1743295816230,0.0001685,83010.0,83009.0,0.16058685]
[1743295816404,0.0122145,83010.0,83009.0,0.01454085]
[1743295816638,0.00404043,83010.0,83009.0,0.01954085]
[1743295816975,0.00404043,83010.0,83009.0,0.02454085]
[1743295818789,0.00404043,83010.0,83009.0,0.26547785]
[1743295818979,0.0001685,83010.0,83009.0,0.27752385]
[1743295819836,0.00407643,83010.0,83009.0,0.27752385]
[1743295820032,0.0001685,83010.0,83009.0,0.27752385]
[1743295820213,0.00407643,83010.0,83009.0,0.27752385]
[1743295820422,0.0001685,83010.0,83009.0,0.27752385]
[1743295821826,0.0001685,83010.0,83009.0,0.35512385]
[1743295826080,0.0001685,83010.0,83009.0,0.50626296]
[1743295826290,0.0001685,83010.0,83009.0,0.40352385]
[1743295829421,0.0001685,83010.0,83009.0,0.40386085]
[1743295833693,0.0001685,83010.0,83009.0,0.39886085]
[1743295834211,0.0001685,83010.0,83009.0,0.39386085]
[1743295834413,0.0001685,83010.0,83009.0,0.4054291]
[1743295834616,0.0001685,83010.0,83009.0,0.51319874]
[1743295834819,0.0001685,83010.0,83009.0,0.4054291]
[1743295835231,0.0001685,83010.0,83009.0,0.4164291]
[1743295835614,0.0001685,83010.0,83009.0,0.4114291]
[1743295836039,0.0001685,83010.0,83009.0,0.4174291]
[1743295839924,0.0001685,83010.0,83009.0,0.4114291]
[1743295840371,9e-07,83012.0,83009.0,0.81479874]
[1743295840566,9e-07,83012.0,83011.0,0.69781785]
[1743295841117,9e-07,83012.0,83011.0,0.70264685]
[1743295841327,0.002,83029.0,83011.0,0.70264685]
[1743295841328,1e-06,83029.0,83028.0,0.26746685]
[1743295841478,1e-06,83029.0,83028.0,0.83356685]
[1743295841681,1e-06,83029.0,83028.0,0.69276685]
[1743295841889,1e-06,83029.0,83028.0,0.53360685]
[1743295842207,0.0001695,83029.0,83028.0,0.53360685]
[1743295843403,0.0001695,83029.0,83028.0,0.41430685]
[1743295843845,0.00375768,83029.0,83028.0,0.41430685]
[1743295844161,0.00375768,83029.0,83028.0,0.14684]
[1743295844334,0.00375768,83029.0,83028.0,0.16138085]
[1743295844565,0.00375768,83029.0,83028.0,0.006]
[1743295844716,0.00375768,83029.0,83028.0,0.158924]
[1743295845073,0.00375768,83029.0,83028.0,0.41434685]
[1743295845419,0.0001695,83029.0,83028.0,0.41434685]
[1743295845739,0.0001695,83029.0,83028.0,0.51731466]
[1743295845938,0.0001695,83029.0,83028.0,0.41430685]
[1743295851355,0.0122125,83029.0,83028.0,0.16138085]
[1743295851517,0.0001695,83029.0,83028.0,0.16138085]
[1743295851869,0.0001695,83029.0,83028.0,0.41430685]
[1743295852270,0.0001695,83029.0,83028.0,0.14684]
[1743295852419,0.2530915,83029.0,83028.0,0.14704]
[1743295853104,0.2530915,83029.0,83028.0,0.006]
[1743295853428,0.252929,83027.0,83026.0,0.141]
[1743295854582,0.0122125,83029.0,83026.0,0.141]
[1743295854780,0.0122125,83029.0,83028.0,0.005]
[1743295855196,0.240882,83028.0,83026.0,0.141]
[1743295855538,0.0122125,83029.0,83026.0,0.147]
[1743295855737,0.2530945,83029.0,83026.0,0.147]
[1743295856091,0.2530945,83029.0,83024.0,0.01454085]
[1743295856505,0.0001695,83029.0,83026.0,0.006]
[1743295857007,0.0001695,83029.0,83027.0,0.240885]
[1743295857162,0.0001695,83029.0,83026.0,0.018044]
[1743295857999,0.0001695,83029.0,83026.0,0.012044]
[1743295858237,0.0001695,83029.0,83026.0,0.257929]
[1743295860678,0.0001695,83029.0,83026.0,0.017044]
[1743295860884,0.05438165,83029.0,83026.0,0.005]
[1743295861085,0.30730665,83029.0,83026.0,0.005]
[1743295861543,0.2530945,83029.0,83026.0,0.005]
[1743295863285,0.252929,83027.0,83026.0,0.005]
[1743295863643,0.296129,83027.0,83026.0,0.005]
[1743295864541,0.313529,83027.0,83026.0,0.005]
[1743295865138,0.613529,83027.0,83026.0,0.005]
[1743295865354,0.25298,83010.0,83009.0,0.000337]
[1743295865935,0.26854034,83010.0,83009.0,0.000337]
[1743295866479,0.25298,83010.0,83009.0,0.006337]
[1743295871950,0.25298,83010.0,83009.0,0.000337]
[1743295872330,0.25298,83010.0,83009.0,0.006337]
[1743295872913,0.20506919,83019.0,83012.0,0.012046]
[1743295873114,0.012046,83014.0,83009.0,0.01487785]
[1743295873325,0.252975,83012.0,83009.0,0.01487785]
[1743295873665,0.252975,83012.0,83009.0,0.01887785]
[1743295873880,0.012045,83016.0,83009.0,0.01887785]
[1743295873881,0.252963,83016.0,83009.0,0.01887785]
[1743295874289,0.252969,83014.0,83009.0,0.01887785]
[1743295874639,0.012046,83013.0,83009.0,0.000337]
[1743295874805,0.012046,83014.0,83009.0,0.012383]
[1743295875007,0.252963,83016.0,83009.0,0.015383]
[1743295875203,0.012046,83013.0,83009.0,0.003337]
[1743295875764,0.240931,83012.0,83009.0,0.000337]
[1743295875989,0.252977,83012.0,83009.0,0.003337]
[1743295876171,0.25298,83010.0,83009.0,0.003337]
[1743295876516,0.25298,83010.0,83009.0,0.000337]
[1743295877135,0.012046,83010.0,83009.0,0.000337]
[1743295877839,0.012046,83010.0,83009.0,0.003337]
[1743295878306,0.25298,83010.0,83009.0,0.000337]
[1743295878778,0.3300773,83010.0,83009.0,0.004337]
[1743295879006,0.252977,83012.0,83009.0,0.004337]
[1743295879228,0.012046,83013.0,83009.0,0.004337]
[1743295879852,0.012046,83013.0,83009.0,0.000337]
[1743295881253,0.252974,83013.0,83009.0,0.003337]
[1743295881653,0.252974,83013.0,83009.0,0.000337]
[1743295882068,0.252974,83013.0,83009.0,0.003337]
[1743295882918,0.012046,83012.0,83009.0,0.003337]
[1743295883134,0.012046,83011.0,83009.0,0.003337]
[1743295883343,0.008046,83011.0,83009.0,0.003337]
[1743295884254,0.008046,83011.0,83009.0,0.000337]
[1743295884409,0.240934,83010.0,83009.0,0.000337]
[1743295884631,0.240934,83010.0,83009.0,0.003337]
[1743295885170,0.240934,83010.0,83009.0,0.000337]
[1743295885470,0.240934,83010.0,83009.0,0.003337]
[1743295885870,0.240934,83010.0,83009.0,0.000337]
[1743295886383,0.540913,83018.0,83009.0,0.004337]
[1743295886592,0.20506919,83019.0,83016.0,0.012045]
[1743295886799,0.20506919,83019.0,83015.0,0.012046]
[1743295887006,0.20506919,83019.0,83013.0,0.287126]
[1743295887007,0.20506919,83019.0,83013.0,0.299172]
[1743295887219,0.20506919,83019.0,83015.0,0.252964]
[1743295887580,0.0001695,83029.0,83024.0,0.012044]
[1743295887783,0.3001695,83029.0,83025.0,0.252935]
[1743295888013,0.3001695,83029.0,83024.0,0.094644]
[1743295888365,0.3122125,83029.0,83024.0,0.094644]
[1743295888906,0.5530915,83029.0,83024.0,0.094644]
[1743295889078,0.240885,83028.0,83024.0,0.0826]
[1743295889284,0.252932,83026.0,83024.0,0.0826]
[1743295889711,0.252932,83026.0,83017.0,0.33805285]
[1743295889712,0.252943,83023.0,83017.0,0.33805285]
[1743295889912,0.012045,83022.0,83019.0,0.14156]
[1743295890715,0.252932,83026.0,83019.0,0.382468]
[1743295891037,0.0001695,83029.0,83024.0,0.012044]
[1743295891504,0.0001695,83029.0,83025.0,0.24089]
[1743295891915,0.2410505,83029.0,83024.0,0.012044]
[1743295892115,0.0001695,83029.0,83024.0,0.012044]
[1743295892715,0.0001695,83029.0,83025.0,0.241891]
[1743295892909,0.240882,83028.0,83025.0,0.001]
[1743295893321,0.0001695,83029.0,83025.0,0.001]
[1743295893522,0.0001695,83029.0,83028.0,0.094644]
[1743295893722,0.0001695,83029.0,83028.0,0.140844]
[1743295894388,0.0001695,83029.0,83028.0,0.15538485]
[1743295896120,0.0001695,83029.0,83028.0,0.15879371]
[1743295896320,0.0001695,83029.0,83028.0,0.15638485]
[1743295896523,0.0001695,83029.0,83028.0,0.24910804]
[1743295896904,0.0001695,83029.0,83028.0,0.15638485]
[1743295897566,0.0001695,83029.0,83028.0,0.15538485]
[1743295897861,0.0001695,83029.0,83028.0,0.16038485]
[1743295898210,0.0001695,83029.0,83028.0,0.15538485]
[1743295898468,0.0001695,83029.0,83028.0,0.17005312]
[1743295898623,0.0001695,83029.0,83028.0,0.17605312]
[1743295900501,0.0001695,83029.0,83028.0,0.27380804]
[1743295900687,0.0001695,83029.0,83028.0,0.25673126]
[1743295901524,0.0001695,83029.0,83028.0,0.27158758]
[1743295902272,0.0001695,83029.0,83028.0,0.57158758]
[1743295902884,0.0001695,83029.0,83028.0,0.47624117]
[1743295903092,0.0001695,83029.0,83028.0,0.47024117]
[1743295903290,0.0001695,83029.0,83028.0,0.59662485]
[1743295904490,0.0001695,83029.0,83028.0,0.146844]
[1743295904694,0.0001695,83029.0,83028.0,0.27624]
[1743295904902,0.0001695,83029.0,83028.0,0.006]
[1743295905125,0.02675696,83029.0,83028.0,0.006]
[1743295905330,0.0122125,83029.0,83028.0,0.006]
[1743295905569,0.012044,83024.0,83023.0,0.14148]
[1743295906010,0.012045,83020.0,83019.0,0.0774]
[1743295906350,0.012044,83024.0,83019.0,0.14168]
[1743295906563,0.25294,83024.0,83019.0,0.14168]
[1743295906693,0.012044,83027.0,83020.0,0.012045]
[1743295906937,0.252932,83026.0,83020.0,0.012045]
[1743295907151,0.012044,83026.0,83021.0,0.012045]
[1743295907365,0.252933,83026.0,83020.0,0.012045]
[1743295908022,0.012044,83025.0,83023.0,0.006]
[1743295908556,0.012044,83025.0,83019.0,0.14168]
[1743295908709,0.012044,83025.0,83020.0,0.004]
[1743295909293,0.012044,83025.0,83019.0,0.153725]
[1743295909496,0.012044,83025.0,83023.0,0.004]
[1743295911073,0.012044,83025.0,83019.0,0.012045]
[1743295911490,0.012044,83025.0,83020.0,0.004]
[1743295911690,0.0001695,83029.0,83027.0,0.012044]
[1743295911918,0.0001695,83029.0,83028.0,0.012044]
[1743295912071,0.0001695,83029.0,83024.0,0.01454085]
[1743295912279,0.0001695,83029.0,83024.0,0.25543385]
[1743295912492,0.0001695,83029.0,83026.0,0.252931]
[1743295912956,0.0001695,83029.0,83027.0,0.015044]
[1743295913354,0.0001695,83029.0,83028.0,0.252926]
[1743295913557,0.0001695,83029.0,83028.0,0.40427854]
[1743295913803,0.0001695,83029.0,83028.0,0.31616685]
[1743295914360,0.0001695,83029.0,83028.0,0.39686685]
[1743295915544,0.0001695,83029.0,83028.0,0.40186685]
[1743295915933,0.0001695,83029.0,83028.0,0.39686685]
[1743295916314,0.0001695,83029.0,83028.0,0.40286685]
[1743295917126,0.0001695,83029.0,83028.0,0.49922628]
[1743295919063,0.0001695,83029.0,83028.0,0.79922628]
[1743295921136,0.0001695,83029.0,83028.0,0.70286685]
[1743295923379,0.0001695,83029.0,83028.0,0.529606]
[1743295923983,0.0001695,83029.0,83028.0,0.54414685]
[1743295927494,0.0001695,83029.0,83028.0,0.40286685]
[1743295927695,0.0001695,83029.0,83028.0,0.54434685]
[1743295929040,0.0001695,83029.0,83028.0,0.54430685]
[1743295930052,0.0001695,83029.0,83028.0,0.46352685]
[1743295931017,0.0001695,83029.0,83028.0,0.32216685]
[1743295931228,0.0001695,83029.0,83028.0,0.16198085]
[1743295931469,0.0001695,83029.0,83028.0,0.15598085]
[1743295931697,0.0001695,83029.0,83028.0,0.16198085]
[1743295931904,0.0001695,83029.0,83028.0,0.006]
[1743295932133,0.0122125,83029.0,83028.0,0.006]
[1743295932544,0.012043,83030.0,83028.0,0.006]
[1743295932990,0.25292,83030.0,83028.0,0.006]
[1743295933145,0.012043,83034.0,83028.0,0.246881]
[1743295933146,0.252908,83034.0,83028.0,0.246881]
[1743295933499,0.252901,83036.0,83030.0,0.240876]
[1743295933658,0.252901,83036.0,83029.0,0.012043]
[1743295933862,0.252908,83034.0,83028.0,0.252925]
[1743295934067,0.252908,83034.0,83028.0,0.258925]
[1743295934672,0.25338068,83034.0,83028.0,0.252925]
[1743295934904,0.00047268,83034.0,83033.0,0.012043]
[1743295935119,6.8e-07,83034.0,83033.0,0.15378385]
[1743295935326,6.8e-07,83034.0,83033.0,0.45619188]
[1743295935526,6.8e-07,83034.0,83033.0,0.47734905]
[1743295936220,0.0001683,83045.0,83044.0,0.25258723]
[1743295936419,0.0001683,83045.0,83044.0,0.53589537]
[1743295936619,0.0001683,83045.0,83044.0,0.83589537]
[1743295936965,0.0001683,83045.0,83044.0,0.8504435]
[1743295937176,0.0001686,83057.0,83054.0,0.240804]
[1743295937177,4e-07,83057.0,83054.0,0.240804]
[1743295937378,4e-07,83057.0,83056.0,0.69958185]
[1743295937621,4e-07,83057.0,83056.0,0.69458185]
[1743295938336,0.012032,83107.0,83068.0,0.380004]
[1743295938536,0.012034,83093.0,83068.0,0.53598485]
[1743295938736,0.012034,83093.0,83068.0,0.59199104]
[1743295938737,0.012034,83091.0,83068.0,0.59199104]
[1743295938943,0.012035,83088.0,83068.0,0.59199104]
[1743295939172,0.252749,83086.0,83068.0,0.59199104]
[1743295939375,0.012035,83088.0,83068.0,0.53598485]
[1743295939587,0.24981124,83073.0,83068.0,0.14174085]
[1743295939786,0.00905924,83073.0,83068.0,0.02657885]
[1743295939987,0.00905924,83073.0,83068.0,0.16793885]
[1743295940531,0.00905924,83073.0,83068.0,0.14136]
[1743295940532,0.252799,83070.0,83068.0,0.14136]
[1743295940733,0.00905924,83073.0,83068.0,0.14136]
[1743295941134,0.00905924,83073.0,83068.0,0.153398]
[1743295941413,0.012038,83070.0,83068.0,0.14628]
[1743295941617,0.252799,83070.0,83068.0,0.14628]
[1743295941820,0.00905924,83073.0,83068.0,0.005]
[1743295942029,0.00905924,83073.0,83068.0,0.35564485]
[1743295943813,0.00905924,83073.0,83068.0,0.27234485]
[1743295944475,0.00905924,83073.0,83068.0,0.005]
[1743295944729,0.26184824,83073.0,83068.0,0.005]
[1743295944929,0.252796,83071.0,83068.0,0.14604]
[1743295945130,0.252796,83071.0,83068.0,0.005]
[1743295945473,0.014038,83069.0,83068.0,0.005]
[1743295946958,0.012039,83060.0,83059.0,0.14104]
[1743295947189,0.252828,83060.0,83059.0,0.14104]
[1743295947393,0.252845,83055.0,83049.0,0.252862]
[1743295947596,0.240807,83054.0,83052.0,0.14096]
[1743295947797,0.01204,83055.0,83052.0,0.14096]
[1743295947998,0.252852,83052.0,83047.0,0.012041]
[1743295948199,0.01204,83055.0,83049.0,0.012041]
[1743295949135,0.21710819,83060.0,83050.0,0.01204]
[1743295949334,0.21710819,83060.0,83053.0,0.240808]
[1743295950403,0.252831,83059.0,83053.0,0.252848]
[1743295950625,0.012039,83059.0,83053.0,0.255848]
[1743295951329,0.012039,83059.0,83053.0,0.252848]
[1743295952112,0.012039,83059.0,83050.0,0.01204]
[1743295952389,0.240811,83053.0,83047.0,0.14092]
[1743295952709,0.252851,83053.0,83047.0,0.14092]
[1743295952942,0.240818,83050.0,83047.0,0.14092]
[1743295953361,0.012041,83048.0,83047.0,0.14092]
[1743295953543,0.012041,83048.0,83047.0,0.14592]
[1743295953850,0.012041,83048.0,83047.0,0.005]
[1743295954259,0.252874,83045.0,83044.0,0.14064729]
[1743295954575,0.252874,83045.0,83044.0,0.15518814]
[1743295956904,0.252874,83045.0,83044.0,0.16118814]
[1743295958951,0.252874,83045.0,83044.0,0.00604729]
[1743295958952,0.3287346,83045.0,83044.0,0.00604729]
[1743295959885,0.3287346,83045.0,83044.0,4.729e-05]
[1743295960109,0.252874,83045.0,83044.0,4.729e-05]
[1743295960257,0.252874,83045.0,83044.0,0.00504729]
[1743295962330,0.2774725,83045.0,83044.0,0.00504729]
[1743295962584,0.2774725,83045.0,83044.0,0.00538429]
[1743295962790,0.252874,83045.0,83044.0,0.00038429]
[1743295963191,0.252874,83045.0,83044.0,0.00338429]
[1743295963566,0.252874,83045.0,83044.0,0.00038429]
[1743295963984,0.252874,83045.0,83044.0,0.00238429]
[1743295971590,0.33549923,83045.0,83044.0,0.00238429]
[1743295972338,0.252874,83045.0,83044.0,0.00238429]
[1743295978542,0.552874,83045.0,83044.0,0.00238429]
[1743295981847,0.552874,83045.0,83044.0,0.00038429]
[1743295988876,0.58831516,83045.0,83044.0,0.00038429]
[1743295989109,0.552874,83045.0,83044.0,0.00038429]
[1743295989352,0.7023428,83045.0,83044.0,0.00038429]